bitfinex/quotes_SOLUSD_20241031
["timestamp","ask_amount","ask_price","bid_price","bid_amount"]
[1730349231266,10.18472998,175.16,175.13,23.776884]
[1730349231464,10.18472998,175.16,175.13,29.486884]
[1730349231875,10.18472998,175.17,175.13,29.486884]
[1730349241589,10.18472998,175.18,175.13,53.94671398]
[1730349242573,10.18472998,175.19,175.14,15.89412998]
[1730349243972,10.18472998,175.19,175.14,30.16832998]
[1730349245093,10.18472998,175.18,175.14,19.9836]
[1730349251067,31.85742998,175.2,175.15,33.96161398]
[1730349253486,10.18472998,175.19,175.15,33.96161398]
[1730349253687,10.18472998,175.19,175.15,23.776884]
[1730349256568,31.85742998,175.2,175.15,23.776884]
[1730349257985,31.85742998,175.2,175.15,33.96161398]
[1730349258492,15.89212998,175.21,175.16,10.18472998]
[1730349266283,10.18472998,175.2,175.15,53.94431398]
[1730349269170,5.7074,175.21,175.15,38.050284]
[1730349269171,10.18472998,175.18,175.15,38.050284]
[1730349269399,10.18472998,175.18,175.13,15.89462998]
[1730349270872,10.18472998,175.18,175.14,23.776884]
[1730349271910,6.086,175.22,175.17,10.18472998]
[1730349272183,10.18472998,175.21,175.16,10.18472998]
[1730349272801,10.18472998,175.21,175.17,23.776884]
[1730349273485,10.18472998,175.21,175.17,43.757184]
[1730349273807,26.82272998,175.24,175.18,10.18472998]
[1730349274784,10.18472998,175.23,175.18,10.18472998]
[1730349275684,26.82272998,175.24,175.19,10.18472998]
[1730349276399,5.7067,175.23,175.19,10.18472998]
[1730349276576,26.82272998,175.24,175.19,15.89262998]
[1730349276782,16.638,175.24,175.2,10.18472998]
[1730349277103,16.52652998,175.26,175.21,10.18472998]
[1730349277599,22.23252998,175.26,175.21,10.18472998]
[1730349277805,10.18472998,175.25,175.2,10.18472998]
[1730349278681,10.18472998,175.25,175.19,30.16282998]
[1730349278682,10.18472998,175.24,175.19,30.16282998]
[1730349279003,10.18472998,175.22,175.17,39.67031398]
[1730349279991,15.89202998,175.22,175.17,39.67031398]
[1730349286611,10.18472998,175.21,175.17,39.67031398]
[1730349286801,10.18472998,175.21,175.17,29.485584]
[1730349287209,10.18472998,175.22,175.17,39.67031398]
[1730349288614,15.89192998,175.22,175.17,39.67031398]
[1730349290510,10.18472998,175.19,175.14,10.18472998]
[1730349291619,15.89282998,175.19,175.14,10.18472998]
[1730349293910,10.18472998,175.21,175.16,10.18472998]
[1730349295013,5.7077,175.2,175.16,10.18472998]
[1730349297515,10.18472998,175.21,175.16,10.18472998]
[1730349297721,10.18472998,175.21,175.16,30.16612998]
[1730349299098,15.89232998,175.21,175.16,30.16612998]
[1730349299398,15.89232998,175.21,175.16,19.9814]
[1730349299399,10.18472998,175.2,175.16,19.9814]
[1730349300016,10.18472998,175.19,175.15,23.776884]
[1730349300214,10.18472998,175.18,175.15,23.776884]
[1730349300898,10.18472998,175.19,175.15,19.9826]
[1730349301101,10.18472998,175.2,175.15,30.16732998]
[1730349304509,10.18472998,175.22,175.17,10.18472998]
[1730349305525,15.89162998,175.23,175.17,10.18472998]
[1730349307347,15.89162998,175.23,175.17,15.89322998]
[1730349307510,15.89162998,175.23,175.18,10.18472998]
[1730349307928,15.89162998,175.23,175.18,15.89302998]
[1730349310527,5.7061,175.25,175.21,10.18472998]
[1730349311607,15.89082998,175.25,175.2,10.18472998]
[1730349313121,15.89082998,175.25,175.19,10.18472998]
[1730349313122,10.18472998,175.24,175.19,10.18472998]
[1730349313509,10.18472998,175.23,175.18,10.18472998]
[1730349313717,10.18472998,175.22,175.17,10.18472998]
[1730349313913,10.18472998,175.21,175.16,10.18472998]
[1730349314341,15.89222998,175.21,175.16,10.18472998]
[1730349314533,15.89222998,175.21,175.16,15.89372998]
[1730349314730,10.18472998,175.23,175.18,10.18472998]
[1730349314937,5.7071,175.22,175.18,10.18472998]
[1730349315529,5.7071,175.22,175.19,10.18472998]
[1730349316427,10.18472998,175.24,175.19,10.18472998]
[1730349316727,15.89142998,175.23,175.18,10.18472998]
[1730349321854,15.89142998,175.23,175.19,10.18472998]
[1730349322224,15.89142998,175.23,175.18,10.18472998]
[1730349322718,15.89142998,175.23,175.19,10.18472998]
[1730349323141,15.89142998,175.23,175.15,5.7093]
[1730349323142,15.89132998,175.24,175.14,64.51580392]
[1730349323329,15.89132998,175.24,175.2,10.18472998]
[1730349323330,5.7066,175.24,175.2,10.18472998]
[1730349323860,15.89132998,175.24,175.2,10.18472998]
[1730349324152,15.89132998,175.24,175.19,10.18472998]
[1730349328052,10.18472998,175.23,175.18,10.18472998]
[1730349328238,10.18472998,175.21,175.17,14.2712]
[1730349332334,15.89212998,175.22,175.17,10.18472998]
[1730349339455,10.18472998,175.23,175.17,10.18472998]
[1730349339653,22.6718,175.26,175.21,10.18472998]
[1730349339654,5.7063,175.25,175.21,10.18472998]
[1730349341057,38.56232998,175.26,175.21,10.18472998]
[1730349344838,28.3776,175.26,175.22,10.18472998]
[1730349352170,15.88952998,175.29,175.24,10.18472998]
[1730349352660,5.7048,175.29,175.25,10.18472998]
[1730349354061,15.88952998,175.29,175.24,10.18472998]
[1730349361573,10.18472998,175.28,175.23,10.18472998]
[1730349362980,5.7054,175.27,175.23,10.18472998]
[1730349364179,5.7054,175.27,175.22,10.18472998]
[1730349364673,5.7054,175.27,175.23,10.18472998]
[1730349367567,10.18472998,175.25,175.2,10.18472998]
[1730349368577,10.18472998,175.26,175.21,10.18472998]
[1730349369076,5.7061,175.25,175.21,10.18472998]
[1730349372487,5.7061,175.25,175.22,10.18472998]
[1730349372972,5.706,175.26,175.22,10.18472998]
[1730349373177,5.706,175.26,175.23,10.18472998]
[1730349374180,15.88952998,175.29,175.24,6.40352998]
[1730349374385,5.7048,175.29,175.24,6.40352998]
[1730349375268,5.7048,175.29,175.25,10.18472998]
[1730349375473,5.7041,175.31,175.28,10.18472998]
[1730349375672,5.7035,175.33,175.28,10.18472998]
[1730349376077,15.88822998,175.33,175.28,10.18472998]
[1730349377484,5.7032,175.34,175.3,10.18472998]
[1730349377670,5.7032,175.34,175.31,10.18472998]
[1730349378271,10.18472998,175.36,175.26,19.9703]
[1730349378272,5.7027,175.36,175.32,10.18472998]
[1730349378482,15.88672998,175.38,175.33,10.18472998]
[1730349378790,10.18472998,175.37,175.32,15.88842998]
[1730349379489,10.18472998,175.37,175.32,10.18472998]
[1730349380673,15.88662998,175.38,175.33,10.18472998]
[1730349381397,15.88632998,175.39,175.34,10.18472998]
[1730349383193,15.88632998,175.39,175.35,10.18472998]
[1730349383394,10.18472998,175.37,175.33,10.18472998]
[1730349384096,15.88632998,175.39,175.34,10.18472998]
[1730349384689,10.18472998,175.38,175.33,10.18472998]
[1730349384902,15.88632998,175.39,175.34,10.18472998]
[1730349385398,10.18472998,175.38,175.33,10.18472998]
[1730349385898,15.88672998,175.38,175.33,10.18472998]
[1730349386289,5.702,175.38,175.34,10.18472998]
[1730349386590,10.18472998,175.37,175.33,10.18472998]
[1730349386803,15.88672998,175.38,175.33,10.18472998]
[1730349387799,5.702,175.38,175.34,10.18472998]
[1730349393404,15.88672998,175.38,175.33,10.18472998]
[1730349395881,5.702,175.38,175.34,10.18472998]
[1730349398702,15.88672998,175.38,175.33,10.18472998]
[1730349399983,5.702,175.38,175.34,10.18472998]
[1730349401705,5.702,175.38,175.35,10.18472998]
[1730349402401,15.88622998,175.39,175.34,10.18472998]
[1730349405905,15.88622998,175.39,175.35,10.18472998]
[1730349406414,5.7015,175.39,175.35,10.18472998]
[1730349407394,5.7006,175.42,175.38,10.18472998]
[1730349407596,10.18472998,175.41,175.37,10.18472998]
[1730349408806,15.88532998,175.42,175.37,10.18472998]
[1730349411601,15.88532998,175.42,175.38,10.18472998]
[1730349412617,37.84622998,175.43,175.38,10.18472998]
[1730349415828,15.88462998,175.44,175.39,10.18472998]
[1730349416140,15.88462998,175.44,175.39,15.88622998]
[1730349417611,10.18472998,175.45,175.4,10.18472998]
[1730349418318,10.18472998,175.45,175.41,10.18472998]
[1730349418520,10.18472998,175.45,175.4,10.18472998]
[1730349418702,16.47940548,175.46,175.41,10.18472998]
[1730349419124,0.5952755,175.46,175.42,10.18472998]
[1730349419913,0.5952755,175.46,175.42,15.88512998]
[1730349420116,0.5952755,175.46,175.45,10.18472998]
[1730349420709,0.5952755,175.46,175.45,30.18472998]
[1730349420904,0.5952755,175.46,175.45,30.31021998]
[1730349421824,0.5952755,175.46,175.45,36.00981998]
[1730349423738,0.5952755,175.46,175.45,36.33530998]
[1730349424223,0.5952755,175.46,175.45,36.23530998]
[1730349425132,0.5952755,175.46,175.45,36.33530998]
[1730349425826,0.5952755,175.46,175.45,36.23530998]
[1730349426031,0.5952755,175.46,175.45,36.33530998]
[1730349428442,0.5952755,175.46,175.45,60.11219398]
[1730349429127,0.5952755,175.46,175.45,60.01219398]
[1730349429325,0.5952755,175.46,175.45,60.11219398]
[1730349430839,0.5952755,175.46,175.45,59.78670398]
[1730349431052,0.5952755,175.46,175.45,35.88432998]
[1730349431922,0.5952755,175.46,175.45,36.00981998]
[1730349432838,0.5952755,175.46,175.45,59.78670398]
[1730349433037,0.5952755,175.46,175.45,30.18472998]
[1730349433220,0.5952755,175.46,175.45,35.88432998]
[1730349434940,0.5952755,175.46,175.45,59.66121398]
[1730349443739,0.5952755,175.46,175.43,10.18472998]
[1730349443943,6.7397755,175.46,175.42,10.18472998]
[1730349444354,6.7397755,175.46,175.41,10.18472998]
[1730349446024,6.7397755,175.46,175.41,15.88552998]
[1730349446223,12.4390755,175.46,175.41,15.88552998]
[1730349446427,22.62380548,175.46,175.41,15.88552998]
[1730349446845,10.18472998,175.44,175.38,10.18472998]
[1730349447056,10.18472998,175.44,175.39,10.18472998]
[1730349447057,16.4802,175.43,175.39,10.18472998]
[1730349448227,16.4802,175.43,175.39,15.88612998]
[1730349448428,16.4802,175.43,175.42,10.18472998]
[1730349448735,6.7397755,175.46,175.42,10.18472998]
[1730349449155,16.92450548,175.46,175.41,10.18472998]
[1730349449526,10.18472998,175.45,175.4,33.96161398]
[1730349450446,10.18472998,175.45,175.4,39.66251398]
[1730349451053,10.18472998,175.45,175.4,29.477784]
[1730349451558,10.18472998,175.44,175.39,14.2539]
[1730349452158,10.18472998,175.44,175.39,30.14012998]
[1730349454341,15.88442998,175.45,175.39,30.14012998]
[1730349459167,6.7397755,175.46,175.41,10.18472998]
[1730349460653,16.92450548,175.46,175.41,15.88542998]
[1730349461772,10.18472998,175.45,175.41,5.7007]
[1730349462267,10.18472998,175.44,175.41,5.7007]
[1730349464862,10.18472998,175.45,175.41,5.7007]
[1730349469056,10.18472998,175.45,175.41,19.953]
[1730349472675,6.7397755,175.46,175.41,30.13772998]
[1730349473265,16.92450548,175.46,175.41,19.953]
[1730349473474,10.18472998,175.45,175.41,19.953]
[1730349475779,10.18472998,175.44,175.41,19.953]
[1730349476073,10.18472998,175.44,175.39,10.18472998]
[1730349476074,10.18472998,175.44,175.39,23.776884]
[1730349477178,10.18472998,175.43,175.39,23.776884]
[1730349477382,10.18472998,175.41,175.36,5.7022]
[1730349477562,10.18472998,175.41,175.36,14.2563]
[1730349478077,10.18472998,175.38,175.36,14.2563]
[1730349478468,10.18472998,175.38,175.33,10.18472998]
[1730349478669,10.18472998,175.35,175.3,10.18472998]
[1730349479256,10.18472998,175.33,175.29,19.9668]
[1730349480668,10.18472998,175.35,175.3,23.776884]
[1730349480859,10.18472998,175.35,175.29,30.15152998]
[1730349481061,10.18472998,175.35,175.3,10.18472998]
[1730349481479,10.18472998,175.35,175.29,30.15152998]
[1730349482374,10.18472998,175.35,175.3,39.66601398]
[1730349483383,10.18472998,175.34,175.3,29.481284]
[1730349486976,10.18472998,175.34,175.29,30.15142998]
[1730349488369,5.703,175.35,175.28,10.18472998]
[1730349488370,10.18472998,175.33,175.28,10.18472998]
[1730349488574,10.18472998,175.33,175.29,23.776884]
[1730349489776,10.18472998,175.33,175.29,29.481384]
[1730349490284,10.18472998,175.33,175.29,5.7045]
[1730349490485,10.18472998,175.31,175.28,19.9672]
[1730349491770,10.18472998,175.32,175.28,14.2623]
[1730349493084,10.18472998,175.32,175.28,19.9674]
[1730349493272,15.88862998,175.32,175.28,14.2623]
[1730349493680,10.18472998,175.32,175.27,15.89012998]
[1730349493881,10.18472998,175.31,175.27,5.7054]
[1730349494308,10.18472998,175.32,175.27,15.89012998]
[1730349497998,10.18472998,175.31,175.27,5.7054]
[1730349502399,10.18472998,175.32,175.27,30.15382998]
[1730349502570,80.18472998,175.36,175.31,10.18472998]
[1730349502884,10.18472998,175.36,175.31,10.18472998]
[1730349503493,15.88732998,175.36,175.31,10.18472998]
[1730349503791,10.18472998,175.37,175.32,15.88852998]
[1730349504096,10.18472998,175.37,175.32,10.18472998]
[1730349504312,10.18472998,175.39,175.34,10.18472998]
[1730349504802,10.18472998,175.4,175.35,10.18472998]
[1730349505904,10.18472998,175.4,175.35,15.88732998]
[1730349506989,22.87711795,175.41,175.35,15.88732998]
[1730349507188,22.87711795,175.41,175.36,10.18472998]
[1730349507707,10.18472998,175.38,175.34,10.18472998]
[1730349507898,10.18472998,175.36,175.31,10.18472998]
[1730349508504,10.18472998,175.37,175.32,10.18472998]
[1730349509012,10.18472998,175.39,175.34,10.18472998]
[1730349509219,10.18472998,175.38,175.33,10.18472998]
[1730349509810,5.7022,175.37,175.33,10.18472998]
[1730349510614,5.7022,175.37,175.32,10.18472998]
[1730349512104,5.7022,175.37,175.29,10.18472998]
[1730349512105,26.60512998,175.34,175.29,10.18472998]
[1730349512409,26.60512998,175.34,175.28,10.18472998]
[1730349512617,26.60512998,175.34,175.29,10.18472998]
[1730349513410,32.30832998,175.34,175.29,10.18472998]
[1730349513613,32.30832998,175.34,175.28,5.7049]
[1730349513614,10.18472998,175.32,175.28,5.7049]
[1730349513988,10.18472998,175.32,175.28,23.776884]
[1730349514193,10.18472998,175.32,175.27,15.89012998]
[1730349514410,10.18472998,175.31,175.26,30.15452998]
[1730349515488,80.18472998,175.33,175.28,10.18472998]
[1730349515705,16.4204,175.34,175.29,10.18472998]
[1730349516691,26.60512998,175.34,175.29,10.18472998]
[1730349517314,32.30832998,175.34,175.29,10.18472998]
[1730349517799,22.1236,175.34,175.29,10.18472998]
[1730349518502,22.1236,175.34,175.29,15.88952998]
[1730349520030,32.30832998,175.34,175.29,15.88952998]
[1730349521225,92.40342998,175.36,175.31,10.18472998]
[1730349521703,86.70062998,175.36,175.31,10.18472998]
[1730349521900,76.5159,175.36,175.32,10.18472998]
[1730349523419,82.2184,175.36,175.32,10.18472998]
[1730349524292,82.2184,175.36,175.3,29.481084]
[1730349524293,92.40312998,175.36,175.31,10.18472998]
[1730349524617,10.18472998,175.35,175.31,10.18472998]
[1730349525699,10.18472998,175.35,175.3,39.66581398]
[1730349525899,10.18472998,175.33,175.29,19.9668]
[1730349530397,10.18472998,175.31,175.26,10.18472998]
[1730349530597,10.18472998,175.31,175.25,30.15502998]
[1730349531520,10.18472998,175.3,175.25,30.15502998]
[1730349531702,10.18472998,175.29,175.25,19.9703]
[1730349531903,10.18472998,175.28,175.25,19.9703]
[1730349532105,76.5159,175.36,175.27,10.18472998]
[1730349532294,86.70062998,175.36,175.31,10.18472998]
[1730349532500,10.18472998,175.35,175.3,10.18472998]
[1730349533111,15.88782998,175.35,175.3,10.18472998]
[1730349533316,10.18472998,175.33,175.28,10.18472998]
[1730349533517,10.18472998,175.32,175.27,30.15272998]
[1730349533812,10.18472998,175.32,175.27,19.968]
[1730349534423,10.18472998,175.32,175.27,30.15272998]
[1730349535399,15.88842998,175.33,175.27,30.15272998]
[1730349537914,15.88842998,175.33,175.28,10.18472998]
[1730349539906,5.7037,175.33,175.28,10.18472998]
[1730349540838,5.7037,175.33,175.29,10.18472998]
[1730349544827,5.7037,175.33,175.28,10.18472998]
[1730349549634,5.7037,175.33,175.28,15.88982998]
[1730349550429,70.0,175.32,175.27,10.18472998]
[1730349550633,80.18472998,175.32,175.26,30.15382998]
[1730349550934,95.46282998,175.32,175.26,30.15382998]
[1730349551109,10.18472998,175.3,175.26,14.2637]
[1730349551306,15.88902998,175.31,175.26,14.2637]
[1730349553728,5.7043,175.31,175.26,24.44842998]
[1730349557236,70.0,175.34,175.3,10.18472998]
[1730349557433,70.0,175.34,175.29,10.18472998]
[1730349557913,80.18472998,175.34,175.29,10.18472998]
[1730349558437,10.18472998,175.33,175.28,10.18472998]
[1730349560043,15.88832998,175.33,175.28,10.18472998]
[1730349560339,10.18472998,175.32,175.27,15.88992998]
[1730349563035,15.88832998,175.33,175.28,10.18472998]
[1730349567631,15.88832998,175.33,175.28,15.88972998]
[1730349568148,5.7036,175.33,175.28,15.88972998]
[1730349569638,70.0,175.34,175.3,10.18472998]
[1730349569833,15.88782998,175.35,175.3,10.18472998]
[1730349570649,5.7031,175.35,175.3,10.18472998]
[1730349572648,5.7031,175.35,175.3,15.88912998]
[1730349573055,31.87882998,175.41,175.34,10.18472998]
[1730349573360,21.6941,175.41,175.36,10.18472998]
[1730349573828,31.87882998,175.41,175.36,10.18472998]
[1730349574435,10.18472998,175.39,175.34,10.18472998]
[1730349574746,10.18472998,175.39,175.34,15.88772998]
[1730349576541,85.88602998,175.4,175.34,15.88772998]
[1730349577250,85.88602998,175.4,175.35,10.18472998]
[1730349578758,85.88602998,175.4,175.35,15.88752998]
[1730349584770,80.18472998,175.37,175.32,10.18472998]
[1730349585077,70.0,175.37,175.33,10.18472998]
[1730349585478,80.18472998,175.37,175.32,10.18472998]
[1730349587181,80.18472998,175.37,175.32,15.88842998]
[1730349587365,85.88692998,175.37,175.32,15.88842998]
[1730349587564,10.18472998,175.36,175.32,5.7037]
[1730349587873,10.18472998,175.36,175.31,30.14922998]
[1730349588057,10.18472998,175.36,175.31,19.9645]
[1730349588248,75.7022,175.37,175.29,10.18472998]
[1730349588249,80.18472998,175.35,175.29,10.18472998]
[1730349588452,10.18472998,175.33,175.28,30.15262998]
[1730349591785,15.88792998,175.34,175.29,10.18472998]
[1730349592279,10.18472998,175.33,175.28,10.18472998]
[1730349592479,10.18472998,175.33,175.24,19.9725]
[1730349592480,15.88792998,175.34,175.29,10.18472998]
[1730349593461,15.88792998,175.34,175.29,15.88942998]
[1730349593655,22.5546,175.35,175.3,10.18472998]
[1730349593885,85.2647,175.39,175.34,10.18472998]
[1730349594182,15.2647,175.39,175.35,10.18472998]
[1730349594863,6.3972,175.4,175.35,10.18472998]
[1730349595102,12.0984,175.4,175.36,10.18472998]
[1730349595586,70.0,175.41,175.37,10.18472998]
[1730349596461,75.701,175.41,175.37,10.18472998]
[1730349597465,85.88572998,175.41,175.36,10.18472998]
[1730349599164,75.701,175.41,175.37,10.18472998]
[1730349599686,85.88572998,175.41,175.36,10.18472998]
[1730349599865,75.701,175.41,175.37,10.18472998]
[1730349600066,70.0,175.41,175.37,10.18472998]
[1730349604974,70.0,175.41,175.38,10.18472998]
[1730349613386,70.0,175.41,175.37,10.18472998]
[1730349613579,15.88592998,175.4,175.35,10.18472998]
[1730349615098,80.18472998,175.39,175.34,10.18472998]
[1730349615806,70.0,175.39,175.34,10.18472998]
[1730349616889,85.88652998,175.39,175.34,10.18472998]
[1730349618309,75.7018,175.39,175.34,10.18472998]
[1730349622724,85.88652998,175.39,175.34,10.18472998]
[1730349623510,85.88652998,175.39,175.33,10.18472998]
[1730349623706,85.88652998,175.39,175.32,15.88842998]
[1730349623707,10.18472998,175.38,175.32,15.88842998]
[1730349623902,80.18472998,175.37,175.32,10.18472998]
[1730349624401,70.0,175.37,175.32,10.18472998]
[1730349625386,75.7022,175.37,175.32,15.88852998]
[1730349626710,10.18472998,175.36,175.31,10.18472998]
[1730349626919,80.18472998,175.35,175.29,15.88922998]
[1730349627989,85.88762998,175.35,175.29,15.88922998]
[1730349628813,70.0,175.32,175.28,10.18472998]
[1730349629116,70.0,175.32,175.25,28.5294]
[1730349629117,80.18472998,175.32,175.27,10.18472998]
[1730349629892,70.0,175.32,175.26,19.9702]
[1730349630101,6.3591,175.34,175.3,10.18472998]
[1730349630313,6.3591,175.34,175.31,10.18472998]
[1730349632286,12.0623,175.34,175.31,10.18472998]
[1730349632704,12.0623,175.34,175.3,10.18472998]
[1730349633218,12.0623,175.34,175.29,10.18472998]
[1730349633391,12.0623,175.34,175.3,10.18472998]
[1730349633906,6.3591,175.34,175.3,10.18472998]
[1730349634112,6.3591,175.34,175.31,10.18472998]
[1730349634313,15.88752998,175.36,175.31,10.18472998]
[1730349634694,5.7028,175.36,175.32,10.18472998]
[1730349635109,92.1739,175.37,175.33,10.18472998]
[1730349642513,82.2471,175.39,175.35,10.18472998]
[1730349646008,92.43182998,175.39,175.34,10.18472998]
[1730349647804,82.2471,175.39,175.35,10.18472998]
[1730349648819,12.2471,175.39,175.36,10.18472998]
[1730349649332,5.7013,175.4,175.37,10.18472998]
[1730349649831,5.7013,175.4,175.36,10.18472998]
[1730349659025,10.18472998,175.38,175.34,14.258]
[1730349659217,5.7013,175.4,175.32,10.18472998]
[1730349659218,80.18472998,175.37,175.32,10.18472998]
[1730349659927,70.0,175.37,175.33,10.18472998]
[1730349661036,10.18472998,175.38,175.33,10.18472998]
[1730349661238,15.88692998,175.38,175.33,10.18472998]
[1730349661941,5.7022,175.38,175.34,10.18472998]
[1730349662109,80.18472998,175.39,175.34,10.18472998]
[1730349662110,70.0,175.39,175.34,10.18472998]
[1730349662310,5.7016,175.39,175.36,10.18472998]
[1730349662521,5.7016,175.39,175.35,10.18472998]
[1730349663427,5.7012,175.4,175.35,10.18472998]
[1730349663826,5.7012,175.4,175.36,10.18472998]
[1730349664028,96.24372998,175.41,175.36,10.18472998]
[1730349664331,101.94462998,175.41,175.36,10.18472998]
[1730349664645,91.7599,175.41,175.36,10.18472998]
[1730349665937,91.7599,175.41,175.36,15.88712998]
[1730349666234,5.7006,175.42,175.38,10.18472998]
[1730349666811,70.0,175.43,175.4,10.18472998]
[1730349667036,101.00312998,175.45,175.4,10.18472998]
[1730349667224,70.0,175.43,175.4,10.18472998]
[1730349671043,75.7003,175.43,175.4,10.18472998]
[1730349671232,20.8186,175.45,175.41,10.18472998]
[1730349677722,0.5952755,175.46,175.44,10.18472998]
[1730349678143,0.5952755,175.46,175.43,10.18472998]
[1730349682773,0.5952755,175.46,175.44,10.18472998]
[1730349689282,0.5952755,175.46,175.45,10.18472998]
[1730349692286,0.5952755,175.46,175.45,33.96161398]
[1730349692884,0.5952755,175.46,175.45,10.18472998]
[1730349693361,0.5952755,175.46,175.45,39.66121398]
[1730349701091,0.5952755,175.46,175.45,33.96161398]
[1730349705676,0.5952755,175.46,175.45,10.18472998]
[1730349705984,0.5952755,175.46,175.43,14.2506]
[1730349705985,0.5952755,175.46,175.43,30.13552998]
[1730349706191,0.5952755,175.46,175.43,10.18472998]
[1730349707790,0.5952755,175.46,175.44,10.18472998]
[1730349709290,0.5952755,175.46,175.42,5.7003]
[1730349709291,0.5952755,175.46,175.45,10.18472998]
[1730349713497,0.5952755,175.46,175.44,10.18472998]
[1730349713682,16.47940548,175.46,175.41,10.18472998]
[1730349714002,6.2946755,175.46,175.41,10.18472998]
[1730349718077,6.2946755,175.46,175.41,15.88552998]
[1730349719982,6.2946755,175.46,175.42,10.18472998]
[1730349721005,0.5952755,175.46,175.42,10.18472998]
[1730349721886,0.5952755,175.46,175.43,10.18472998]
[1730349722473,0.5952755,175.46,175.44,10.18472998]
[1730349722796,0.5952755,175.46,175.45,10.18472998]
[1730349722992,0.5952755,175.46,175.45,33.96161398]
[1730349724497,0.5952755,175.46,175.45,39.66121398]
[1730349724708,0.5952755,175.46,175.45,10.18472998]
[1730349725473,0.5952755,175.46,175.44,10.18472998]
[1730349725680,0.5952755,175.46,175.43,10.18472998]
[1730349733800,6.2945755,175.46,175.41,15.88552998]
[1730349733999,6.2945755,175.46,175.41,10.18472998]
[1730349734514,6.2945755,175.46,175.42,10.18472998]
[1730349734885,6.2945755,175.46,175.43,10.18472998]
[1730349736705,6.2945755,175.46,175.41,5.7006]
[1730349736706,6.2945755,175.46,175.42,10.18472998]
[1730349736927,6.2945755,175.46,175.41,10.18472998]
[1730349738418,6.2945755,175.46,175.41,15.88542998]
[1730349739410,6.2945755,175.46,175.42,10.18472998]
[1730349745320,6.2945755,175.46,175.41,10.18472998]
[1730349746728,6.2945755,175.46,175.42,10.18472998]
[1730349750630,22.88230548,175.46,175.4,14.2523]
[1730349750802,10.18472998,175.44,175.4,14.2523]
[1730349751000,80.18472998,175.45,175.4,14.2523]
[1730349751527,76.403,175.4,175.32,10.18472998]
[1730349751718,10.18472998,175.35,175.3,10.18472998]
[1730349752303,70.0,175.36,175.31,10.18472998]
[1730349752513,6.403,175.4,175.35,10.18472998]
[1730349752826,6.403,175.4,175.27,92.8479]
[1730349752827,86.58772998,175.4,175.36,14.2563]
[1730349753024,10.18472998,175.39,175.34,15.88762998]
[1730349753325,80.18472998,175.38,175.33,10.18472998]
[1730349753539,10.18472998,175.37,175.32,24.44402998]
[1730349753833,10.18472998,175.36,175.31,10.18472998]
[1730349754233,10.18472998,175.37,175.31,10.18472998]
[1730349754402,10.18472998,175.37,175.32,10.18472998]
[1730349755835,85.88662998,175.38,175.32,15.88832998]
[1730349756935,80.18472998,175.38,175.32,15.88832998]
[1730349758006,10.18472998,175.38,175.33,10.18472998]
[1730349759029,15.88642998,175.39,175.33,10.18472998]
[1730349760030,86.58772998,175.4,175.34,10.18472998]
[1730349760606,10.18472998,175.39,175.34,10.18472998]
[1730349761313,92.28902998,175.4,175.34,10.18472998]
[1730349762032,10.18472998,175.39,175.34,10.18472998]
[1730349763033,10.18472998,175.38,175.33,10.18472998]
[1730349764849,10.18472998,175.38,175.33,15.88812998]
[1730349766660,82.1043,175.4,175.36,10.18472998]
[1730349766661,12.1043,175.4,175.36,10.18472998]
[1730349766823,12.1043,175.4,175.35,10.18472998]
[1730349768525,22.28902998,175.4,175.35,10.18472998]
[1730349772148,92.28902998,175.4,175.35,10.18472998]
[1730349772355,92.28902998,175.4,175.34,10.18472998]
[1730349773457,22.28902998,175.4,175.34,10.18472998]
[1730349773667,22.28902998,175.4,175.35,10.18472998]
[1730349776562,22.28902998,175.4,175.34,10.18472998]
[1730349777658,22.28902998,175.4,175.34,15.88782998]
[1730349778157,22.28902998,175.4,175.35,10.18472998]
[1730349778352,22.28902998,175.4,175.34,5.7031]
[1730349778353,5.7013,175.4,175.36,10.18472998]
[1730349782367,86.21582998,175.44,175.39,10.18472998]
[1730349782540,6.0311,175.44,175.4,10.18472998]
[1730349783363,6.0311,175.44,175.36,14.2563]
[1730349783364,0.5952755,175.46,175.43,10.18472998]
[1730349784156,0.5952755,175.46,175.42,15.88512998]
[1730349785576,0.5952755,175.46,175.43,10.18472998]
[1730349788040,0.5952755,175.46,175.42,10.18472998]
[1730349788948,0.5952755,175.46,175.41,10.18472998]
[1730349789253,10.18472998,175.44,175.39,10.18472998]
[1730349790454,5.7,175.44,175.41,10.18472998]
[1730349790742,5.7,175.44,175.4,10.18472998]
[1730349792144,5.7,175.44,175.41,10.18472998]
[1730349793048,10.78000548,175.46,175.41,10.18472998]
[1730349793371,5.6996,175.45,175.4,10.18472998]
[1730349799275,15.88432998,175.45,175.4,10.18472998]
[1730349802376,5.6996,175.45,175.4,10.18472998]
[1730349802977,15.88432998,175.45,175.38,14.2547]
[1730349803164,10.18472998,175.44,175.39,10.18472998]